bitfinex-derivatives/quotes_BNBF0:USTF0_20260114
["timestamp","ask_amount","ask_price","bid_price","bid_amount"]
[1768367298399,0.18432252,944.22,942.61,1.5831051]
[1768367301103,0.18432252,944.22,942.62,1.5831051]
[1768367303104,0.18432252,944.22,942.63,1.5831051]
[1768367304304,0.18432252,944.22,942.64,1.5831051]
[1768367306306,0.18432252,944.22,942.65,1.5831051]
[1768367307406,0.18432252,944.22,942.72,1.5831051]
[1768367307703,0.18432252,944.22,941.73,0.18452288]
[1768367307704,0.18432252,944.22,942.74,1.5831051]
[1768367310111,0.18432252,944.22,942.73,1.5831051]
[1768367316420,0.18432252,944.22,942.74,1.5831051]
[1768367320520,0.18432252,944.22,942.75,1.5831051]
[1768367329128,0.18432252,944.22,942.74,1.5831051]
[1768367330329,0.18432252,944.22,942.07,2.6117491]
[1768367330732,0.18432252,944.22,942.06,2.6117491]
[1768367340836,0.18432252,944.22,941.87,2.6117491]
[1768367341340,0.18432252,944.22,941.83,2.6117491]
[1768367341840,0.18432252,944.22,941.82,2.6117491]
[1768367342341,0.18432252,944.22,941.81,2.6117491]
[1768367344141,0.18432252,944.22,941.77,2.6117491]
[1768367344537,0.18432252,944.22,941.73,0.18452288]
[1768367344538,0.18432252,944.22,941.76,2.6117491]
[1768367345538,0.18432252,944.22,941.75,2.6117491]
[1768367346542,0.18432252,944.22,941.74,2.6117491]
[1768367347745,0.18432252,944.22,941.73,2.79627198]
[1768367348643,0.18432252,944.22,941.73,0.18452288]
[1768367369352,0.18432252,944.22,941.05,2.6117491]
[1768367369655,0.18432252,944.22,941.88,0.18450771]
[1768367475729,3.6516372,944.84,941.88,0.18450771]
[1768367476028,0.18445197,943.7,941.88,0.18450771]
[1768367476226,3.6516372,944.84,941.88,0.18450771]
[1768367476526,0.18445197,943.7,941.88,0.18450771]
[1768367476826,0.01152112,944.64,941.88,0.18450771]
[1768367477031,0.18445197,943.7,941.88,0.18450771]
[1768367477330,3.6516372,944.84,941.88,0.18450771]
[1768367477627,0.18445148,943.7,941.88,0.18450771]
[1768367477833,3.6516372,944.84,941.88,0.18450771]
[1768367478029,3.6516372,944.83,941.88,0.18450771]
[1768367478231,0.18445148,943.7,941.88,0.18450771]
[1768367478530,3.6516372,944.83,941.88,0.18450771]
[1768367478726,0.18445197,943.7,941.88,0.18450771]
[1768367478932,3.6516372,944.83,941.88,0.18450771]
[1768367479233,0.18445197,943.7,941.88,0.18450771]
[1768367479434,0.01312817,944.64,941.88,0.18450771]
[1768367479733,0.18445197,943.7,941.88,0.18450771]
[1768367479932,3.6516372,944.83,941.88,0.18450771]
[1768367480235,0.18445197,943.7,941.88,0.18450771]
[1768367480630,0.00852187,944.64,941.88,0.18450771]
[1768367480929,0.18445197,943.7,941.88,0.18450771]
[1768367481130,3.6516372,944.83,941.88,0.18450771]
[1768367481434,0.18445148,943.7,941.88,0.18450771]
[1768367481630,0.0077264,944.64,941.88,0.18450771]
[1768367481834,0.18445148,943.7,941.88,0.18450771]
[1768367482236,3.6516372,944.83,941.88,0.18450771]
[1768367482437,0.18445148,943.7,941.88,0.18450771]
[1768367482638,0.00841952,944.64,941.88,0.18450771]
[1768367482932,0.18445148,943.7,941.88,0.18450771]
[1768367483138,3.6516372,944.83,941.88,0.18450771]
[1768367483433,0.18445148,943.7,941.88,0.18450771]
[1768367483837,3.6516372,944.83,941.88,0.18450771]
[1768367484033,0.18445148,943.7,941.88,0.18450771]
[1768367484333,0.01184909,944.64,941.88,0.18450771]
[1768367484537,0.18445148,943.7,941.88,0.18450771]
[1768367484834,3.6516372,944.83,941.88,0.18450771]
[1768367485037,0.18445148,943.7,941.88,0.18450771]
[1768367485337,0.0126125,944.64,941.88,0.18450771]
[1768367485639,0.18445148,943.7,941.88,0.18450771]
[1768367485838,3.6516372,944.83,941.88,0.18450771]
[1768367486333,0.18445148,944.1,941.88,0.18450771]
[1768367569702,0.18445148,944.1,941.62,2.6117491]
[1768367569999,0.18445148,944.1,942.1,0.18444122]
[1768367686199,3.6516372,944.77,942.1,0.18444122]
[1768367686498,0.18447104,943.61,942.1,0.18444122]
[1768367686800,3.6516372,944.77,942.1,0.18444122]
[1768367686997,0.18447104,943.58,942.1,0.18444122]
[1768367688096,0.00989894,944.55,942.1,0.18444122]
[1768367688296,0.18445979,943.69,942.1,0.18444122]
[1768367688501,0.00989894,944.55,942.1,0.18444122]
[1768367688797,0.18444317,943.73,942.1,0.18444122]
[1768367689000,3.6516372,944.9,942.1,0.18444122]
[1768367689396,0.18444317,943.73,942.1,0.18444122]
[1768367689598,3.6516372,944.9,942.1,0.18444122]
[1768367689901,0.18444317,943.73,942.1,0.18444122]
[1768367690098,3.6516372,944.9,942.1,0.18444122]
[1768367690402,0.18444317,943.73,942.1,0.18444122]
[1768367690603,3.6516372,944.9,942.1,0.18444122]
[1768367690804,3.6516372,944.9,942.32,1.589616]
[1768367691297,3.6516372,944.91,942.32,1.589616]
[1768367691500,0.18440945,944.26,942.32,1.589616]
[1768367692103,0.18440945,944.26,942.31,1.589616]
[1768367695202,0.18440945,944.26,942.3,1.589616]
[1768367697006,0.18440945,944.26,942.33,1.589616]
[1768367697202,0.18440945,944.26,942.35,1.589616]
[1768367699204,0.18440945,944.26,942.34,1.589616]
[1768367702306,0.18440945,944.26,942.33,1.589616]
[1768367705406,0.18440945,944.26,942.32,1.589616]
[1768367710914,0.18440945,944.26,942.33,1.589616]
[1768367711610,0.18440945,944.26,942.34,1.589616]
[1768367712012,0.18440945,944.26,942.37,1.589616]
[1768367713015,0.18440945,944.26,942.38,1.589616]
[1768367713410,0.18440945,944.26,942.37,1.589616]
[1768367716411,0.18440945,944.26,942.41,1.589616]
[1768367716613,0.18440945,944.26,942.47,1.589616]
[1768367716918,0.18440945,944.26,942.48,1.589616]
[1768367717316,0.18440945,944.26,942.47,1.589616]
[1768367717513,0.18440945,944.26,942.48,1.589616]
[1768367718318,0.18440945,944.26,942.47,1.589616]
[1768367720315,0.18440945,944.26,942.46,1.589616]
[1768367720813,0.18440945,944.26,942.47,1.589616]
[1768367721318,0.18440945,944.26,942.46,1.589616]
[1768367728217,0.18440945,944.26,942.47,1.589616]
[1768367728419,0.18440945,944.26,942.46,1.589616]
[1768367729215,0.18440945,944.26,942.47,1.589616]
[1768367730322,0.18440945,944.26,942.45,1.589616]
[1768367732224,0.18440945,944.26,942.46,1.589616]
[1768367734528,0.18440945,944.26,942.47,1.589616]
[1768367735822,0.18440945,944.26,942.49,1.589616]
[1768367737724,0.18440945,944.26,942.48,1.589616]
[1768367738124,0.18440945,944.26,942.47,1.589616]
[1768367738322,0.18440945,944.26,942.41,1.589616]
[1768367740130,0.18440945,944.26,942.42,1.589616]
[1768367744128,0.18440945,944.26,942.43,1.589616]
[1768367749428,0.18440945,944.26,942.44,1.589616]
[1768367752338,0.18440945,944.26,942.45,1.589616]
[1768367755342,0.18440945,944.26,942.46,1.589616]
[1768367757239,0.18440945,944.26,942.45,1.589616]
[1768367759244,0.18440945,944.26,942.1,0.18444122]
[1768367759245,0.18440945,944.26,942.46,1.589616]
[1768367759743,0.18440945,944.26,942.45,1.589616]
[1768367760346,0.18440945,944.26,942.46,1.589616]
[1768367761450,0.18440945,944.26,942.43,1.589616]
[1768367761746,0.18440945,944.26,942.41,1.589616]
[1768367762749,0.18440945,944.26,942.35,1.589616]
[1768367763249,0.18440945,944.26,942.34,1.589616]
[1768367765151,0.18440945,944.26,942.1,0.18444122]
[1768367765152,0.18440945,944.26,942.33,1.589616]
[1768367767352,0.18440945,944.26,942.32,1.589616]
[1768367780063,0.18440945,944.26,942.39,1.589616]
[1768367780862,0.18440945,944.26,942.21,0.18441825]
[1768367861018,3.6516372,945.01,941.66,2.6117491]
[1768367862420,3.6516372,945.01,941.65,2.6117491]
[1768367865020,3.6516372,945.02,941.65,2.6117491]
[1768367865828,0.18442753,944.18,942.32,0.18442753]
[1768367930064,0.18442753,944.18,941.36,2.6117491]
[1768367930264,0.18442753,944.18,942.14,0.18449402]
[1768367944980,0.18442753,944.18,941.34,2.6117491]
[1768367945178,0.18442753,944.18,942.14,0.18450429]
[1768367945475,0.18442753,944.18,941.33,2.6117491]
[1768367945774,0.18442753,944.18,942.14,0.18450478]
[1768367946078,0.18442753,944.18,941.33,2.6117491]
[1768367946278,0.18442753,944.18,942.14,0.18450478]
[1768367946479,0.18442753,944.18,941.33,2.6117491]
[1768367946782,0.18442753,944.18,942.14,0.18450478]
[1768367954383,0.18442753,944.18,941.3,2.6117491]
[1768367954689,0.18442753,944.18,941.96,0.18452239]
[1768367954884,0.18442753,944.18,941.2,2.6117491]
[1768367955186,0.18442753,944.18,941.67,0.18455224]
[1768367995015,0.18442753,944.18,941.4,1.5839441]
[1768367995016,0.18442753,944.18,941.35,1.5839441]
[1768367995217,0.18442753,944.18,941.49,0.18458405]
[1768367995713,3.83606473,944.18,941.49,0.18458405]
[1768367996718,3.6516372,944.16,941.49,0.18458405]
[1768367997815,3.6516372,944.14,941.49,0.18458405]
[1768367998817,3.6516372,944.11,941.49,0.18458405]
[1768367999922,3.6516372,944.07,941.49,0.18458405]
[1768368002622,3.6516372,944.07,941.49,1.76852815]
[1768368003023,3.6516372,944.08,941.49,1.76852815]
[1768368004225,3.6516372,944.08,941.5,1.5839441]
[1768368006121,3.6516372,944.09,941.5,1.5839441]
[1768368008228,3.6516372,944.09,941.51,1.5839441]
[1768368012729,3.6516372,944.09,941.49,1.76852815]
[1768368013629,3.6516372,944.06,941.49,1.76852815]
[1768368014632,3.6516372,944.05,941.49,1.76852815]
[1768368015131,3.6516372,944.05,941.49,0.18458405]
[1768368015530,3.6516372,944.03,941.49,0.18458405]
[1768368022641,3.6516372,944.03,941.5,1.5839441]
[1768368022840,3.6516372,944.07,941.5,1.5839441]
[1768368026342,3.6516372,944.07,941.51,1.5839441]
[1768368028944,3.6516372,944.06,941.51,1.5839441]
[1768368030047,3.6516372,943.97,941.4,1.5839441]
[1768368031243,3.6516372,943.98,941.4,1.5839441]
[1768368032148,3.6516372,943.98,941.39,1.5839441]
[1768368032848,3.6516372,943.98,941.36,1.76854577]
[1768368033249,3.6516372,943.95,941.36,0.18460167]
[1768368035349,3.6516372,943.96,941.36,0.18460167]
[1768368041648,3.6516372,943.94,941.36,0.18460167]
[1768368043651,3.6516372,943.87,941.36,0.18460167]
[1768368044748,3.6516372,943.86,941.36,0.18460167]
[1768368044951,3.6516372,943.86,941.17,1.5839441]
[1768368045148,3.6516372,943.86,941.15,0.18464771]
[1768368045754,3.6516372,943.81,941.15,0.18464771]
[1768368046752,3.6516372,943.82,941.15,0.18464771]
[1768368047755,3.6516372,943.83,941.15,0.18464771]
[1768368048755,3.6516372,943.84,941.15,0.18464771]
[1768368049860,3.6516372,943.79,941.15,0.18464771]
[1768368050858,3.6516372,943.8,941.15,0.18464771]
[1768368051964,3.6516372,943.81,941.15,0.18464771]
[1768368052964,3.6516372,943.82,941.15,0.18464771]
[1768368055061,3.6516372,943.83,941.15,0.18464771]
[1768368057160,3.6516372,943.84,941.15,0.18464771]
[1768368063377,3.6516372,943.79,941.15,0.18464771]
[1768368065377,3.6516372,943.78,941.15,0.18464771]
[1768368065880,0.18466192,943.13,941.15,0.18464771]
[1768368070078,0.18466192,943.13,940.94,1.5839441]
[1768368070278,0.18466192,943.13,941.13,0.18466682]
[1768368095002,0.18466192,943.13,940.97,1.5839441]
[1768368095301,0.18466192,943.13,941.02,0.18467907]
[1768368109513,0.18466192,943.13,940.85,1.5839441]
[1768368109814,0.18466192,943.13,940.88,0.18470161]
[1768368135031,0.18466192,943.13,940.0,2.6117491]
[1768368135527,0.18466192,943.13,940.85,0.184758]
[1768368155046,0.18466192,943.13,939.94,2.6117491]
[1768368155347,0.18466192,943.13,940.85,0.18475652]
[1768368155650,0.18466192,943.13,939.94,2.6117491]
[1768368155851,0.18466192,943.13,940.85,0.18476339]
[1768368156350,0.18466192,943.13,939.95,2.6117491]
[1768368156552,0.18466192,943.13,940.86,0.1847683]
[1768368156748,0.18466192,943.13,939.95,2.6117491]
[1768368157050,0.18466192,943.13,940.9,0.18475996]
[1768368157250,0.18466192,943.13,939.95,2.6117491]
[1768368157549,0.18466192,943.13,940.92,0.18476094]
[1768368157754,0.18466192,943.13,939.95,2.6117491]
[1768368158051,0.18466192,943.13,940.94,0.18475702]
[1768368158350,0.18466192,943.13,939.95,2.6117491]
[1768368158653,0.18466192,943.13,940.96,0.18475603]
[1768368158857,0.18466192,943.13,939.95,2.6117491]
[1768368159354,0.18466192,943.13,940.97,0.18475603]
[1768368159652,0.18466192,943.13,940.74,0.18475554]
[1768368183381,0.18466192,943.13,939.77,2.6117491]
[1768368183880,3.6516372,943.02,940.65,0.18479282]
[1768368184378,3.6516372,943.02,939.76,2.6117491]
[1768368184678,3.6516372,943.02,940.65,0.18480705]
[1768368185079,3.6516372,943.01,940.65,0.18480705]
[1768368185984,3.6516372,943.04,940.65,0.18480705]
[1768368186986,3.6516372,943.05,940.65,0.18480705]
[1768368187982,0.18466192,943.13,940.65,0.18480705]
[1768368265939,3.6516372,943.35,940.65,0.18480705]
[1768368266238,0.18473936,942.52,940.65,0.18480705]
[1768368266444,3.6516372,943.35,940.65,0.18480705]
[1768368266741,0.18473936,942.24,940.65,0.18480705]
[1768368267039,3.6516372,943.35,940.65,0.18480705]
[1768368267342,0.18473936,942.24,940.65,0.18480705]
[1768368267543,3.6516372,943.35,940.65,0.18480705]
[1768368267843,0.18473936,942.24,940.65,0.18480705]
[1768368268044,3.6516372,943.35,940.65,0.18480705]
[1768368268442,0.18473936,942.24,940.65,0.18480705]
[1768368268742,3.6516372,943.35,940.65,0.18480705]
[1768368268945,0.18473936,942.24,940.65,0.18480705]
[1768368269245,3.6516372,943.35,940.65,0.18480705]
[1768368269442,0.18473936,942.24,940.65,0.18480705]
[1768368269643,3.6516372,943.35,940.65,0.18480705]
[1768368270046,0.18473936,942.24,940.65,0.18480705]
[1768368270248,3.6516372,943.35,940.65,0.18480705]
[1768368270449,0.18473936,942.24,940.65,0.18480705]
[1768368270750,3.6516372,943.35,940.65,0.18480705]
[1768368270951,0.18473936,942.24,940.65,0.18480705]
[1768368271253,3.6516372,943.35,940.65,0.18480705]
[1768368271451,0.18473936,942.24,940.65,0.18480705]
[1768368271754,3.6516372,943.35,940.65,0.18480705]
[1768368272054,0.18473936,942.24,940.65,0.18480705]
[1768368272350,3.6516372,943.35,940.65,0.18480705]
[1768368272650,0.18473936,942.24,940.65,0.18480705]
[1768368272851,3.6516372,943.35,940.65,0.18480705]
[1768368273154,0.18473936,942.24,940.65,0.18480705]
[1768368273354,0.01092274,943.18,940.65,0.18480705]
[1768368273654,0.18473936,942.24,940.65,0.18480705]
[1768368273854,3.6516372,943.35,940.65,0.18480705]
[1768368274153,0.18473936,942.24,940.65,0.18480705]
[1768368274454,3.6516372,943.35,940.65,0.18480705]
[1768368274654,0.18473936,942.24,940.65,0.18480705]
[1768368275051,3.6516372,943.35,940.65,0.18480705]
[1768368275253,0.18473936,942.24,940.65,0.18480705]
[1768368275454,3.6516372,943.36,940.65,0.18480705]
[1768368275755,0.18473887,942.24,940.65,0.18480705]
[1768368275951,0.00938166,943.18,940.65,0.18480705]
[1768368276251,0.18473887,942.24,940.65,0.18480705]
[1768368276652,3.6516372,943.36,940.65,0.18480705]
[1768368276855,0.18473887,942.24,940.65,0.18480705]
[1768368277156,0.00793311,943.18,940.65,0.18480705]
[1768368277353,0.18473887,942.24,940.65,0.18480705]
[1768368277557,3.6516372,943.36,940.65,0.18480705]
[1768368278457,0.18473985,942.69,940.65,0.18480705]
[1768368384644,0.18473985,942.69,940.09,2.6117491]
[1768368384840,0.18473985,942.69,940.81,0.18473103]
[1768368478417,3.6516372,943.43,940.81,0.18473103]
[1768368478612,0.18474279,942.24,940.81,0.18473103]
[1768368478917,3.6516372,943.43,940.81,0.18473103]
[1768368479213,0.18474279,942.24,940.81,0.18473103]
[1768368479517,0.00750433,943.18,940.81,0.18473103]
[1768368479712,0.18474279,942.24,940.81,0.18473103]
[1768368479914,0.00750433,943.18,940.81,0.18473103]
[1768368480216,0.18474279,942.24,940.81,0.18473103]
[1768368480717,0.18474426,942.24,940.81,0.18473103]
[1768368481916,0.0098761,943.18,940.81,0.18473103]
[1768368482213,0.18473201,942.35,940.81,0.18473103]
[1768368482615,3.6516372,943.52,940.81,0.18473103]
[1768368482814,0.18472269,942.35,940.81,0.18473103]
[1768368483113,0.01368007,943.29,940.81,0.18473103]
[1768368483416,0.18472269,942.35,940.81,0.18473103]
[1768368483613,3.6516372,943.52,940.81,0.18473103]
[1768368483916,0.1847222,942.35,940.81,0.18473103]
[1768368484212,3.6516372,943.52,940.81,0.18473103]
[1768368484411,0.18472122,942.36,940.81,0.18473103]
[1768368484617,3.6516372,943.51,940.81,0.18473103]
[1768368484914,0.18472171,942.36,940.81,0.18473103]
[1768368485117,3.6516372,943.51,940.81,0.18473103]
[1768368485417,0.18472171,942.36,940.81,0.18473103]
[1768368485616,3.6516372,943.51,940.81,0.18473103]
[1768368486113,0.18472122,942.36,940.81,0.18473103]
[1768368486313,3.6516372,943.51,940.81,0.18473103]
[1768368486514,0.18472122,942.36,940.81,0.18473103]
[1768368486715,3.6516372,943.5,940.81,0.18473103]
[1768368487014,0.18472171,942.36,940.81,0.18473103]
[1768368487313,3.6516372,943.5,940.81,0.18473103]
[1768368487614,0.18472073,942.37,940.81,0.18473103]
[1768368487814,3.6516372,943.5,940.81,0.18473103]
[1768368488015,0.18472024,942.37,940.81,0.18473103]
[1768368488417,3.6516372,943.5,940.81,0.18473103]
[1768368488718,0.18472024,942.37,940.81,0.18473103]
[1768368488915,3.6516372,943.49,940.81,0.18473103]
[1768368489119,0.18472073,942.37,940.81,0.18473103]
[1768368489319,3.6516372,943.49,940.81,0.18473103]
[1768368489618,0.18472073,942.37,940.81,0.18473103]
[1768368490019,0.01244154,943.31,940.81,0.18473103]
[1768368490220,0.18472073,942.37,940.81,0.18473103]
[1768368490421,0.01244154,943.31,940.81,0.18473103]
[1768368490721,0.18472073,942.37,940.81,0.18473103]
[1768368490920,3.6516372,943.48,940.81,0.18473103]
[1768368491221,0.18472024,942.37,940.81,0.18473103]
[1768368491616,3.6516372,943.47,940.81,0.18473103]
[1768368491917,0.18472024,942.37,940.81,0.18473103]
[1768368492121,3.6516372,943.47,940.81,0.18473103]
[1768368492422,0.18472024,942.37,940.81,0.18473103]
[1768368492722,0.00989321,943.31,940.81,0.18473103]
[1768368492923,0.18472024,942.37,940.81,0.18473103]
[1768368493224,3.6516372,943.46,940.81,0.18473103]
[1768368493420,0.18472073,942.37,940.81,0.18473103]
[1768368493719,5.1952774,944.0,940.81,0.18473103]
[1768368493720,0.01162025,943.31,940.81,0.18473103]
[1768368493920,0.18472024,942.37,940.81,0.18473103]
[1768368494420,0.18472073,942.37,940.81,0.18473103]
[1768368584798,0.18472073,942.37,940.14,2.6117491]
[1768368585293,0.18472073,942.37,940.95,0.18471583]
[1768368585492,0.18472073,942.37,940.14,2.6117491]
[1768368585696,0.18472073,942.37,940.69,0.18471583]
[1768368600908,0.00753856,943.31,940.69,0.18471583]
[1768368601209,0.18469377,942.5,940.69,0.18471583]
[1768368601609,3.6516372,943.61,940.69,0.18471583]
[1768368601810,0.18469671,942.47,940.69,0.18471583]
[1768368602110,0.01239252,943.44,940.69,0.18471583]
[1768368602315,0.18469622,942.47,940.69,0.18471583]
[1768368602612,3.6516372,943.61,940.69,0.18471583]
[1768368602912,0.18469622,942.47,940.69,0.18471583]
[1768368603216,3.6516372,943.61,940.69,0.18471583]
[1768368603411,0.18469622,942.47,940.69,0.18471583]
[1768368603611,3.6516372,943.61,940.69,0.18471583]
[1768368603914,0.18469622,942.47,940.69,0.18471583]
[1768368604215,3.6516372,943.61,940.69,0.18471583]
[1768368604414,0.18469622,942.47,940.69,0.18471583]
[1768368604911,3.6516372,943.61,940.69,0.18471583]
[1768368605109,0.18469671,942.47,940.69,0.18471583]
[1768368605311,3.6516372,943.61,940.69,0.18471583]
[1768368605510,0.18469671,942.47,940.69,0.18471583]
[1768368605711,0.0130872,943.41,940.69,0.18471583]
[1768368606015,0.18469671,942.47,940.69,0.18471583]
[1768368606412,3.6516372,943.61,940.69,0.18471583]
[1768368606715,0.18469671,942.47,940.69,0.18471583]
[1768368606911,0.00842822,943.41,940.69,0.18471583]
[1768368607215,0.18469671,942.47,940.69,0.18471583]
[1768368607412,3.6516372,943.61,940.69,0.18471583]
[1768368607616,0.18469671,942.47,940.69,0.18471583]
[1768368607912,3.6516372,943.61,940.69,0.18471583]
[1768368608112,0.18469671,942.47,940.69,0.18471583]
[1768368608511,0.0102304,943.41,940.69,0.18471583]
[1768368608815,0.18469671,942.47,940.69,0.18471583]
[1768368609016,3.6516372,943.61,940.69,0.18471583]
[1768368609316,0.18469671,942.47,940.69,0.18471583]
[1768368609515,3.6516372,943.61,940.69,0.18471583]
[1768368609516,0.00905598,943.41,940.69,0.18471583]
[1768368609816,0.18469671,942.47,940.69,0.18471583]
[1768368610016,3.6516372,943.61,940.69,0.18471583]
[1768368610417,0.18469671,942.47,940.69,0.18471583]
[1768368610713,0.00978445,943.41,940.69,0.18471583]
[1768368610916,0.18469671,942.47,940.69,0.18471583]
[1768368611214,3.6516372,943.61,940.69,0.18471583]
[1768368611619,0.18469671,942.47,940.69,0.18471583]
[1768368611818,3.6516372,943.61,940.69,0.18471583]
[1768368612018,0.18469622,942.47,940.69,0.18471583]
[1768368612317,3.6516372,943.61,940.69,0.18471583]
[1768368612515,0.18469622,942.47,940.69,0.18471583]
[1768368612916,3.6516372,943.61,940.69,0.18471583]
[1768368613116,0.18469622,942.47,940.69,0.18471583]
[1768368613315,3.6516372,943.6,940.69,0.18471583]
[1768368613617,0.18469671,942.47,940.69,0.18471583]
[1768368614018,0.00839079,943.41,940.69,0.18471583]
[1768368614218,0.18469671,942.47,940.69,0.18471583]
[1768368614518,3.6516372,943.6,940.69,0.18471583]
[1768368614717,0.18469671,942.47,940.69,0.18471583]
[1768368615118,0.00771725,943.41,940.69,0.18471583]
[1768368615317,0.18469622,942.47,940.69,0.18471583]
[1768368615518,3.6516372,943.6,940.69,0.18471583]
[1768368615819,0.18469622,942.47,940.69,0.18471583]
[1768368616114,0.01333911,943.41,940.69,0.18471583]
[1768368616319,0.18469622,942.47,940.69,0.18471583]
[1768368616515,0.01333911,943.41,940.69,0.18471583]
[1768368616819,0.18469671,942.74,940.69,0.18471583]
[1768368785666,0.18469671,942.74,940.0,2.6117491]
[1768368785866,0.18469671,942.74,940.85,0.18472955]
[1768368786163,0.18469671,942.74,940.09,2.6117491]
[1768368786562,0.18469671,942.74,940.98,0.18472073]
[1768368786763,0.18469671,942.74,940.09,2.6117491]
[1768368786966,0.18469671,942.74,941.06,0.18471191]
[1768368787265,0.18469671,942.74,940.09,2.6117491]
[1768368787464,0.18469671,942.74,941.11,0.18471191]
[1768368787865,0.18469671,942.74,940.1,2.6117491]
[1768368788062,0.18469671,942.74,941.14,0.18471191]
[1768368788268,0.18469671,942.74,940.12,2.6117491]
[1768368788567,0.18469671,942.74,941.16,0.18471141]
[1768368788767,0.18469671,942.74,940.12,2.6117491]
[1768368789062,0.18469671,942.74,941.17,0.18470945]
[1768368789466,0.18469671,942.74,940.12,2.6117491]
[1768368789667,0.18469671,942.74,941.18,0.18470945]
[1768368789863,0.18469671,942.74,940.12,2.6117491]
[1768368790267,0.18469671,942.74,941.18,0.18470945]
[1768368790467,0.18469671,942.74,940.12,2.6117491]
[1768368790668,0.18469671,942.74,941.18,0.18470945]
[1768368816986,3.6516372,943.67,941.18,0.18470945]
[1768368817282,0.18469279,942.46,941.18,0.18470945]
[1768368817482,3.6516372,943.67,941.18,0.18470945]
[1768368817784,0.18469083,942.48,941.18,0.18470945]
[1768368817981,0.00764839,943.4,941.18,0.18470945]
[1768368818187,0.18469083,942.48,941.18,0.18470945]
[1768368818386,3.6516372,943.67,941.18,0.18470945]
[1768368818686,0.18469083,942.48,941.18,0.18470945]
[1768368818988,3.6516372,943.67,941.18,0.18470945]
[1768368819187,0.18469083,942.48,941.18,0.18470945]
[1768368819590,3.6516372,943.67,941.18,0.18470945]
[1768368819785,0.18469083,942.48,941.18,0.18470945]
[1768368820086,3.6516372,943.67,941.18,0.18470945]
[1768368820287,0.18469083,942.48,941.18,0.18470945]
[1768368820687,0.01373332,943.42,941.18,0.18470945]
[1768368820891,0.18469083,942.48,941.18,0.18470945]
[1768368821192,3.6516372,943.67,941.18,0.18470945]
[1768368821690,0.00883953,943.42,941.18,0.18470945]
[1768368822088,0.18467662,943.05,941.18,0.18470945]
[1768368883151,3.6516372,944.23,941.18,0.18470945]
[1768368883349,0.18460118,943.26,941.18,0.18470945]
[1768368883647,3.6516372,944.23,941.18,0.18470945]
[1768368883952,0.18455321,943.26,941.18,0.18470945]
[1768368884248,0.01153171,944.2,941.18,0.18470945]
[1768368884450,0.18455321,943.26,941.18,0.18470945]
[1768368884652,3.6516372,944.39,941.18,0.18470945]
[1768368885050,0.18454538,943.26,941.18,0.18470945]
[1768368885249,0.01138784,944.2,941.18,0.18470945]
[1768368885449,0.18454734,943.26,941.18,0.18470945]
[1768368885852,3.6516372,944.46,941.18,0.18470945]
[1768368886152,0.18454538,943.26,941.18,0.18470945]
[1768368886353,3.6516372,944.48,941.18,0.18470945]
[1768368886554,0.18454147,943.3,941.18,0.18470945]
[1768368886955,0.01125305,944.2,941.18,0.18470945]
[1768368887256,0.18454196,943.3,941.18,0.18470945]
[1768368887452,0.01125305,944.2,941.18,0.18470945]
[1768368887453,3.6516372,944.5,941.18,0.18470945]
[1768368887756,0.18454196,943.45,941.18,0.18470945]
[1768368888057,0.01322851,944.24,941.18,0.18470945]
[1768368888355,0.18454196,943.3,941.18,0.18470945]
[1768368888557,3.6516372,944.51,941.18,0.18470945]
[1768368888756,0.18454196,943.48,941.18,0.18470945]
[1768368889054,0.01320038,944.24,941.18,0.18470945]
[1768368889255,0.18454245,943.3,941.18,0.18470945]
[1768368889555,3.6516372,944.67,941.18,0.18470945]
[1768368889756,0.18453658,943.36,941.18,0.18470945]
[1768368890153,0.0133832,944.24,941.18,0.18470945]
[1768368890358,0.18452288,943.36,941.18,0.18470945]
[1768368890554,3.6516372,944.69,941.18,0.18470945]
[1768368890857,0.18452337,943.36,941.18,0.18470945]
[1768368891056,0.01043697,944.3,941.18,0.18470945]
[1768368891355,0.18452337,943.36,941.18,0.18470945]
[1768368891559,3.6516372,944.71,941.18,0.18470945]
[1768368891856,0.18452386,943.36,941.18,0.18470945]
[1768368892160,0.01000812,944.3,941.18,0.18470945]
[1768368892358,0.18452386,943.36,941.18,0.18470945]
[1768368892759,3.6516372,944.72,941.18,0.18470945]
[1768368893059,0.18452386,943.36,941.18,0.18470945]
[1768368893259,0.00825198,944.3,941.18,0.18470945]
[1768368893459,0.18452435,943.36,941.18,0.18470945]
[1768368893954,0.18452484,943.36,941.18,0.18470945]
[1768368897361,0.00974829,944.3,941.18,0.18470945]
[1768368897660,0.1845263,943.36,941.18,0.18470945]
[1768368897857,3.6516372,944.77,941.18,0.18470945]
[1768368898259,0.1845263,943.36,941.18,0.18470945]
[1768368898461,0.01350199,944.3,941.18,0.18470945]
[1768368898656,0.1845263,943.36,941.18,0.18470945]
[1768368899058,3.6516372,944.77,941.18,0.18470945]
[1768368899261,0.18453168,943.31,941.18,0.18470945]
[1768368899462,3.6516372,944.77,941.18,0.18470945]
[1768368899662,3.6516372,944.76,941.18,0.18470945]
[1768368899859,0.18453266,943.31,941.18,0.18470945]
[1768368900056,0.00823119,944.25,941.18,0.18470945]
[1768368900261,0.18453364,943.31,941.18,0.18470945]
[1768368900561,3.6516372,944.76,941.18,0.18470945]